[Event "WR Chess Masters 2023"]
[Site "Duesseldorf"]
[Date "2023.02.16"]
[Round "1.5"]
[White "Esipenko, Andrey"]
[Black "Keymer, Vincent"]
[Result "1-0"]
[ECO "E04"]
[WhiteElo "2675"]
[BlackElo "2690"]
[Annotator "TA"]
[PlyCount "201"]
[EventDate "2023.02.16"]
[EventCountry "GER"]
[SourceTitle "playchess.com"]
[Source "ChessBase"]
[SourceQuality "1"]
[TimeControl "40/7200:20/3600:900+30"]

{[%evp 20,201,0,0,-1,0,0,-15,0,0,108,115,118,104,114,109,243,204,197,189,172,122,121,119,114,116,127,114,122,115,124,134,400,138,304,163,176,51,78,0,0,0,0,0,154,123,128,136,121,0,8,0,244,157,169,173,167,158,166,163,183,157,183,166,164,156,222,171,156,137,139,143,143,143,130,103,117,133,122,113,108,101,119,133,138,138,138,140,149,153,125,130,139,134,147,0,116,107,158,42,85,0,0,0,0,0,0,0,0,0,0,0,0,0,0,0,0,0,0,0,0,0,0,0,0,0,0,0,0,0,0,0,0,0,0,0,12832,0,0,0,0,0,0,0,0,0,0,0,0,0,0,0,0,0,0,0,0,0,12845,12845,12845,12846,12846,12847,12847,0,12848,12848,27999,27999,27999,27999,27999,27999,27999,27999,27999,27999,27999,27999,27999,27999,27999,27999]} 1. d4 {[%emt 0:00:05]} Nf6 {[%emt 0:00:07]} 2. c4 {[%emt 0:00:14]} e6 {[%emt 0:00:04]} 3. Nf3 {[%emt 0:00:13]} d5 {[%emt 0:00:05]} 4. g3 {[%emt 0:00:15]} dxc4 {[%emt 0:00:48]} 5. Bg2 {[%emt 0:00:18]} c6 {[%emt 0:00:06]} 6. O-O {[%emt 0:01:11]} b5 {[%emt 0:02:36]} 7. a4 {[%emt 0:00:39]} Bb7 {[%emt 0:02:45]} 8. Ne5 {[%emt 0:00:53]} a6 {[%emt 0:02:21]} 9. b3 {[%emt 0:01:04]} cxb3 {[%emt 0:00:07]} 10. Qxb3 {[%emt 0:00:23]} Qxd4 {[%emt 0:03:38]} 11. Bb2 {[%emt 0:00:26]} Qb4 {[%emt 0:00:04]} 12. Qc2 {[%emt 0:00:36]} (12. Qxb4 {simplifies} Bxb4 13. axb5 axb5 14. Rxa8 Bxa8 15. Na3) 12... Qc5 $1 {[%emt 0:00:09]} 13. Qd3 {[%emt 0:00:31]} Be7 {[%emt 0:02:45]} 14. Nd2 {[%emt 0:00:48]} Nd5 {[%emt 0:09:30]} (14... Qb6 $11) 15. Rfc1 {[%emt 0:33:29]} Qb6 {[%emt 0:15:49]} 16. Nec4 $1 {[%emt 0:00:22]} (16. e4 Nf6 17. Nb3 O-O $17) 16... bxc4 17. Nxc4 {[%emt 0:00:08]} Nb4 {[%emt 0:21:03]} (17... Qd8 $16) 18. Qb1 {[%emt 0:32:41]} Qc5 {[%emt 0:05:51]} 19. Bxg7 {[%emt 0:00:26]} Rg8 {[%emt 0:00:29]} 20. Qxh7 {[%emt 0:02:58]} (20. Ne5 $18 Qxc1+ 21. Qxc1 Rxg7 22. Qh6) 20... Rxg7 $16 {[%emt 0:00:16]} 21. Qxg7 {[%emt 0:00:02]} Nd7 {[%emt 0:00:48]} 22. Qh8+ {[%emt 0:01:43]} Bf8 {[%emt 0:03:08]} 23. a5 $1 {[%emt 0:03:13]} Rb8 {[%emt 0:15:03]} 24. Rab1 {[%emt 0:02:14]} Bc8 {[%emt 0:02:02]} 25. Rb2 {[%emt 0:04:21]} Qg5 $2 {[%emt 0:08:09][%mdl 8192]} (25... Kd8 $16) 26. Rd2 $2 {[%emt 0:09:01]} (26. Rd1 Qf6 27. Qg8 Qg7 28. Nd6+ Kd8 29. Qxf7 (29. Nxf7+ Ke7 $17) 29... Qxf7 30. Nxf7+ Ke8 $16) (26. Nd6+ $18 {and the rest is easy.} Ke7 27. Rd1) 26... Nd5 $2 {[%emt 0:03:58]} (26... Ke7 $16 {might work better.}) 27. e4 {[%emt 0:03:36]} (27. Bxd5 $142 $1 exd5 28. Nd6+ Ke7 29. Rxc6 (29. f4 Qf6 $15)) 27... Qh6 $18 {[%emt 0:01:23]} 28. Qa1 {[%emt 0:04:39]} (28. Qg8 $18 Ke7 29. h4 (29. exd5 cxd5 30. Qg4 Rb4 $16 {[%mdl 64] Pin})) 28... N5f6 {[%emt 0:01:23]} 29. Nd6+ {[%emt 0:01:04]} (29. Rb2 $16) 29... Bxd6 $11 {[%emt 0:01:01]} 30. Rxd6 {[%emt 0:00:02]} c5 $1 {[%emt 0:00:06]} 31. Rb1 {[%emt 0:04:36]} Rb4 $2 {[%emt 0:06:11]} (31... Rxb1+ $1 $11 32. Qxb1 Qh5) 32. Rxb4 $1 $16 {[%emt 0:02:59]} cxb4 {[%emt 0:00:01]} 33. Rc6 {[%emt 0:00:24]} Kd8 {[%emt 0:02:17]} (33... Bb7 $2 34. Rc7 $18) 34. Qb2 {[%emt 0:00:37]} ({But not} 34. Qd4 $6 Bb7 35. Rc4 Ng4 $11) (34. Rc4 $16) 34... Ng4 {[%emt 0:02:01]} 35. h3 {[%emt 0:00:34]} Qf6 $2 {[%emt 0:00:06]} (35... Nge5 $11 {and Black stays safe.} 36. Rc2 Nd3) 36. Rc2 {[%emt 0:00:58]} Qxb2 {[%emt 0:01:44]} 37. Rxb2 {[%emt 0:00:01]} Nge5 {[%emt 0:00:06]} 38. Rxb4 {[%emt 0:00:04]} Nc6 {[%emt 0:00:05]} 39. Ra4 $1 {[%emt 0:00:05]} e5 {[%emt 0:00:49]} 40. f3 {[%emt 0:00:00]} Ke7 {[%emt 0:00:00]} 41. Bf1 {[%emt 0:04:21]} Nc5 {[%emt 0:08:28]} 42. Ra3 {[%emt 0:00:34]} Be6 {[%emt 0:15:37]} (42... Ne6 $16 43. Kf2 Ned4) 43. h4 {[%emt 0:09:52]} Nd4 {[%emt 0:06:49]} 44. Kf2 {[%emt 0:05:00]} Bb3 {[%emt 0:01:49]} 45. Ra1 $1 {[%emt 0:00:44]} Bc2 {[%emt 0:01:10]} 46. g4 {[%emt 0:13:53]} Kf6 {[%emt 0:01:13]} 47. Kg3 {[%emt 0:01:24]} Kg6 {[%emt 0:05:18]} 48. Re1 {[%emt 0:02:04]} Ncb3 {[%emt 0:04:16]} 49. Bxa6 {[%emt 0:05:59]} Nxa5 {[%emt 0:00:03]} 50. f4 {[%emt 0:00:27]} exf4+ {[%emt 0:01:04]} 51. Kxf4 {[%emt 0:00:02]} Ne6+ {[%emt 0:00:31]} 52. Ke3 {[%emt 0:00:28]} Nb3 {[%emt 0:04:28]} 53. Bc4 {[%emt 0:05:26]} Nbd4 {[%emt 0:00:12]} 54. Rf1 {[%emt 0:00:50]} Ba4 {[%emt 0:01:12]} 55. g5 {[%emt 0:02:49]} Bb5 {[%emt 0:02:39]} 56. Rf6+ $1 {[%emt 0:00:41]} Kg7 {[%emt 0:00:07]} 57. Bxb5 {[%emt 0:05:03]} Nxb5 {[%emt 0:00:05] [#]} 58. h5 $1 {[%emt 0:00:16]} Nf8 {[%emt 0:04:22]} (58... Nd6 $142) 59. Rc6 {[%emt 0:01:05]} (59. h6+ $16 Kg8 60. Rb6) 59... Ne6 $1 $14 {[%emt 0:00:51] [#]} 60. g6 {[%emt 0:00:00]} ({White should try} 60. Ra6 $1 $16) 60... Nbc7 $11 {[%emt 0:00:00]} 61. gxf7 {[%emt 0:02:39]} Kxf7 {[%emt 0:00:30]} 62. e5 {[%emt 0:04:18]} Nd5+ {[%emt 0:07:01]} 63. Ke4 {[%emt 0:00:32]} Ne7 {[%emt 0:00:37]} 64. Rd6 {[%emt 0:01:27]} (64. Ra6 $5) 64... Nc8 {[%emt 0:05:10]} 65. Rd1 {[%emt 0:03:26]} Ne7 {[%emt 0:00:32]} 66. Rf1+ {[%emt 0:01:43]} Kg7 {[%emt 0:01:39]} 67. h6+ {[%emt 0:04:09]} Kg8 $1 {[%emt 0:00:42]} 68. Rf6 {[%emt 0:01:05]} Ng5+ {[%emt 0:02:49]} 69. Kf4 {[%emt 0:00:27]} Nh7 {[%emt 0:00:06]} 70. Rd6 {[%emt 0:00:27]} Kf7 {[%emt 0:00:54]} 71. Kg4 {[%emt 0:00:55]} Ke8 {[%emt 0:01:16]} 72. Kh5 {[%emt 0:00:33]} Kf7 {[%emt 0:00:18]} 73. Ra6 {[%emt 0:00:20]} Nf8 {[%emt 0:00:30]} 74. Rb6 {[%emt 0:00:41]} Nh7 {[%emt 0:00:15]} 75. Rd6 {[%emt 0:00:26]} Nf8 {[%emt 0:00:14]} 76. Kg5 {[%emt 0:00:54]} Nh7+ {[%emt 0:00:29]} 77. Kg4 {[%emt 0:00:26]} Nf8 $2 {[%emt 0:00:30][%mdl 8192]} (77... Kg8 $11 78. Rb6 Kf7) 78. Ra6 $2 {[%emt 0:00:29]} (78. Rf6+ $18 Kg8 79. Rd6) 78... Nh7 $11 {[%emt 0:00:50]} 79. Kf4 {[%emt 0:00:31]} Nf8 {[%emt 0:00:13]} 80. Ke4 {[%emt 0:00:29]} Ne6 {[%emt 0:01:00]} 81. Ra7 {[%emt 0:00:31]} (81. h7 $5 Ng5+ $8 82. Kf4 Nxh7 83. Kg4 $11) 81... Ng5+ {[%emt 0:00:39]} 82. Kf4 {[%emt 0:00:08]} Nh7 {[%emt 0:00:09]} 83. Ra6 {[%emt 0:00:55]} Nf8 {[%emt 0:00:35]} 84. Kg5 {[%emt 0:00:11]} Nh7+ {[%emt 0:00:08]} 85. Kh5 {[%emt 0:00:12]} Nf8 {[%emt 0:00:13]} 86. Rf6+ {[%emt 0:00:18]} Kg8 {[%emt 0:00:45]} 87. Rf1 {[%emt 0:00:56]} Nc6 $1 {[%emt 0:01:02]} 88. Rf5 {[%emt 0:00:47]} (88. Rg1+ Kh8 $16) 88... Nd7 $2 {[%emt 0:00:43][%mdl 8192]} (88... Nb8 $11) 89. e6 $18 {[%emt 0:00:32]} Nf8 {[%emt 0:00:01]} 90. Rc5 {[%emt 0:00:19]} Ne7 {[%emt 0:00:50]} 91. Rc7 {[%emt 0:00:15]} Nd5 {[%emt 0:00:39]} 92. Rg7+ {[%emt 0:00:22]} Kh8 {[%emt 0:00:05]} 93. e7 {[%emt 0:00:23]} Nxe7 {[%emt 0:00:53]} 94. Rxe7 {[%emt 0:00:06]} Kg8 {[%emt 0:00:03]} 95. Kg5 {[%emt 0:00:28]} Nh7+ {[%emt 0:00:15]} 96. Kf5 {[%emt 0:00:35]} Nf8 {[%emt 0:00:06]} 97. Rg7+ {[%emt 0:01:07]} Kh8 {[%emt 0:00:04]} 98. Rf7 {[%emt 0:00:15]} Kg8 {[%emt 0:00:25]} 99. Kf6 {[%emt 0:00:17]} Nh7+ {[%emt 0:00:04]} 100. Kg6 {[%emt 0:00:07]} Nf8+ {[%emt 0:00:02]} 101. Rxf8+ {[%emt 0:00:06]} 1-0

[Event "WR Chess Masters 2023"]
[Site "Duesseldorf"]
[Date "2023.02.17"]
[Round "2.1"]
[White "Giri, Anish"]
[Black "So, Wesley"]
[Result "1/2-1/2"]
[ECO "E42"]
[WhiteElo "2780"]
[BlackElo "2766"]
[Annotator "TA"]
[PlyCount "57"]
[EventDate "2023.02.16"]
[EventCountry "GER"]
[SourceTitle "playchess.com"]
[Source "ChessBase"]
[SourceQuality "1"]
[TimeControl "40/7200:20/3600:900+30"]

{[%evp 10,57,30,9,16,11,20,15,17,14,10,14,29,6,16,12,12,12,12,0,0,0,0,0,14,16,12,17,14,12,14,0,0,0,18,0,16,20,21,8,16,3,5,5,10,0,0,0,11,0]} 1. d4 {[%emt 0:00:02]} Nf6 {[%emt 0:00:27]} 2. c4 {[%emt 0:00:06]} e6 {[%emt 0:00:05]} 3. Nc3 {[%emt 0:00:05]} Bb4 {[%emt 0:00:07]} 4. e3 {[%emt 0:00:06]} c5 {[%emt 0:00:36]} 5. Nge2 {[%emt 0:01:10]} d5 {[%emt 0:00:07]} 6. cxd5 {[%emt 0:00:16]} Nxd5 {[%emt 0:03:14] E42: Nimzo-Indian: Rubinstein: 4...c5 5 Ne2.} 7. a3 {[%emt 0:00:27]} Nxc3 {[%emt 0:00:46]} 8. Nxc3 {[%emt 0:01:49]} Ba5 {[%emt 0:00:46]} 9. dxc5 {[%emt 0:00:52] Black must now prevent Qc2.} Bxc3+ {[%emt 0:05:46]} 10. bxc3 {[%emt 0:00:06]} Qxd1+ {[%emt 0:00:07]} 11. Kxd1 {[%emt 0:00:07]} Nd7 {[%emt 0:00:04] [#] The position is equal.} 12. c6 $1 {[%emt 0:01:03]} Ne5 {[%emt 0:00:08] [#]} 13. a4 $146 {[%emt 0:00:09]} ({Predecessor:} 13. c7 Kd7 14. e4 Kxc7 15. Bf4 f6 16. h4 Bd7 17. Rh3 Bc6 18. Rg3 Rhg8 19. f3 {1-0 Aleksandrov,A (2612)-Vaibhav,S (2448) Chennai op 4th 2012 (7)}) 13... Nxc6 {[%emt 0:06:38]} 14. a5 {[%emt 0:00:11]} e5 {[%emt 0:03:12]} 15. e4 {[%emt 0:11:15]} Be6 {[%emt 0:18:57] Wards off Bc4} 16. Be3 {[%emt 0:05:41]} O-O {[%emt 0:03:53]} 17. Kc2 {[%emt 0:10:16]} Rac8 {[%emt 0:03:40]} 18. Kb2 {[%emt 0:12:35]} Rfd8 {[%emt 0:13:42]} 19. Be2 {[%emt 0:10:07]} f6 {[%emt 0:01:03]} 20. Rhd1 {[%emt 0:09:28]} Rxd1 {[%emt 0:01:22]} 21. Bxd1 {[%emt 0:00:08]} Kf7 {[%emt 0:19:38]} 22. Be2 {[%emt 0:04:32]} Ke7 {[%emt 0:01:21]} 23. h4 {[%emt 0:02:34]} a6 {[%emt 0:04:03]} 24. Bc5+ {[%emt 0:03:03]} Ke8 {[%emt 0:00:12]} 25. g3 {[%emt 0:05:47]} Nd8 {[%emt 0:00:44]} 26. Bb4 {[%emt 0:01:15]} Nc6 {[%emt 0:01:16]} 27. Bc5 {[%emt 0:00:36]} Nd8 {[%emt 0:00:06]} 28. Bb4 {[%emt 0:00:26]} Nc6 {[%emt 0:00:09]} 29. Bc5 {[%emt 0:05:19] Not much happened in this game.   Weighted Error Value: White=0.06 (flawless) /Black=0.02 (flawless)} 1/2-1/2

[Event "WR Chess Masters 2023"]
[Site "Duesseldorf"]
[Date "2023.02.17"]
[Round "2.2"]
[White "Abdusattorov, Nodirbek"]
[Black "Esipenko, Andrey"]
[Result "1-0"]
[ECO "E46"]
[WhiteElo "2734"]
[BlackElo "2675"]
[Annotator "TA"]
[PlyCount "81"]
[EventDate "2023.02.16"]
[EventCountry "GER"]
[SourceTitle "playchess.com"]
[Source "ChessBase"]
[SourceQuality "1"]
[TimeControl "40/7200:20/3600:900+30"]

{[%evp 10,81,0,0,1,0,4,0,12,-8,0,0,0,0,0,0,0,-1,0,-8,174,181,158,0,170,202,190,184,184,135,110,28,36,36,448,426,437,431,425,429,553,549,556,399,555,527,535,523,750,750,750,749,746,746,746,746,746,660,738,720,697,650,645,631,711,687,726,741,962,956,1041,945,904,927]} 1. d4 {[%emt 0:00:09]} Nf6 {[%emt 0:00:47]} 2. c4 {[%emt 0:00:33]} e6 {[%emt 0:00:05]} 3. Nc3 {[%emt 0:00:06]} Bb4 {[%emt 0:00:37]} 4. e3 {[%emt 0:00:08]} O-O {[%emt 0:00:47]} 5. Bd2 {[%emt 0:00:11]} b6 {[%emt 0:02:11]} 6. Bd3 {[%emt 0:00:38]} d5 {[%emt 0:00:30] E46: Nimzo-Indian: Rubinstein: 4 e3 0-0 5 Ne2 without early Bd3.} 7. cxd5 {[%emt 0:01:18]} exd5 {[%emt 0:00:33]} 8. Nf3 {[%emt 0:00:09]} Re8 {[%emt 0:03:03] The position is equal.} 9. Rc1 {[%emt 0:01:10]} Bf8 {[%emt 0:02:51]} 10. O-O {[%emt 0:00:33]} Bb7 {[%emt 0:01:09]} 11. Ne5 {[%emt 0:00:08]} c5 {[%emt 0:00:23]} 12. f4 {[%emt 0:00:33]} Nc6 {[%emt 0:00:40]} 13. Ne2 {[%emt 0:00:22][%cal Bc3e2,Be2g3,Bg3h5][%mdl 32]} Ne4 {[%emt 0:05:36]} 14. Ng3 {[%emt 0:03:43] [#]} Nxd2 $146 {[%emt 0:38:24]} (14... Nxe5 $11 {and Black is okay.} 15. fxe5 Nxd2 16. Qxd2 g6) ({Predecessor:} 14... Nxe5 15. fxe5 Qd7 16. Nh5 Rac8 17. Bc3 cxd4 18. exd4 b5 19. Qf3 b4 20. Bxb4 Rxc1 21. Rxc1 Bxb4 22. Nxg7 {0-1 Rakhmanov,A (2640)-Yoo,C (2535) Chess.com Rapid Wk16 Swiss 2022 (9)}) 15. Bxh7+ $18 {[%emt 0:00:07][%mdl 64] Decoy} Kxh7 {[%emt 0:00:08]} 16. Qh5+ {[%emt 0:00:04]} Kg8 {[%emt 0:00:04]} 17. Qxf7+ {[%emt 0:00:08]} Kh8 {[%emt 0:05:11]} 18. Ng6+ {[%emt 0:13:45]} (18. Qh5+ Kg8 19. Qf7+ Kh8 20. Qh5+ Kg8 21. Qf7+ $11) 18... Kh7 {[%emt 0:00:09] [#]} 19. Nh5 {[%emt 0:00:15] Dodges Qf6. Threatening mate with Nxf8+.} Re6 {[%emt 0:12:46]} (19... Nxf1 $2 20. Nxf8+ Rxf8 21. Qxg7#) 20. f5 {[%emt 0:06:29] The board is on fire.} (20. Qxe6 $16 Nxf1 21. Qf5) 20... Nxf1 $11 {[%emt 0:12:22]} (20... Rxe3 $2 21. Nxf8+ Qxf8 22. Nf6+ Kh8 23. Qh5#) 21. Rxf1 $40 {[%emt 0:18:59][%cal Bc1f1,Bf1f3,Bf3f5][%mdl 160] White is up to no good.} Qg5 $2 {[%emt 0:11:22][%mdl 8192] White stays focused until the end.} 22. Qxe6 $18 {[%emt 0:12:06]} Qxh5 {[%emt 0:03:03]} 23. Rf3 $1 {[%emt 0:05:22]} cxd4 {[%emt 0:03:17] [#] aiming for ...d3.} 24. Qf7 $1 {[%emt 0:02:10]} Bd6 {[%emt 0:07:39]} (24... Be7 $2 25. Nxe7 Qh6 26. Rh3 (26. Nxd5 $2 {perishes.} Ne5 $19) (26. Nxd5 $2 Ne5 $19)) 25. Nf8+ {[%emt 0:09:23][%mdl 64] Discovered Attack} Rxf8 {[%emt 0:00:05]} 26. Qxh5+ {[%emt 0:00:06]} Kg8 {[%emt 0:00:00] [#]} 27. f6 $1 {[%emt 0:08:10][%mdl 512] White is clearly winning.} Ne5 {[%emt 0:00:28] [#]} 28. Rf5 {[%emt 0:00:11]} ({Not} 28. Rh3 Rxf6 29. exd4 Nf7 $16) 28... g6 {[%emt 0:04:00]} 29. Qg5 {[%emt 0:01:47]} dxe3 {[%emt 0:00:48]} 30. Rxe5 {[%emt 0:00:10]} Kf7 {[%emt 0:00:01]} 31. Rxe3 {[%emt 0:03:15]} Bc5 {[%emt 0:00:01] [#]} 32. b4 $1 {[%emt 0:00:25]} Bxe3+ {[%emt 0:00:05]} 33. Qxe3 {[%emt 0:00:04][%mdl 4096] Endgame Qe7+ would kill now. KQ-KRB} Re8 {[%emt 0:00:03] Against Qe7+} 34. Qc3 {[%emt 0:01:09]} Bc8 {[%emt 0:00:01]} 35. a4 {[%emt 0:02:56]} Bf5 {[%emt 0:00:07]} 36. h3 {[%emt 0:03:04]} Rd8 {[%emt 0:00:08]} 37. Qd4 {[%emt 0:00:05]} Be6 {[%emt 0:00:13]} 38. g4 {[%emt 0:00:51][%cal Bg2g4,Bg4g5][%mdl 32]} Rc8 {[%emt 0:00:10]} 39. g5 {[%emt 0:01:11]} Rc1+ {[%emt 0:00:04]} 40. Kf2 {[%emt 0:00:00] White wants to mate with Qe5.} Rc2+ {[%emt 0:00:00]} 41. Kg3 {[%emt 0:00:42] Magnificent play by Abdusattorov!   Weighted Error Value: White=0.06 (flawless) /Black=0.36} 1-0

[Event "WR Chess Masters 2023"]
[Site "Duesseldorf"]
[Date "2023.02.17"]
[Round "2.3"]
[White "Keymer, Vincent"]
[Black "Aronian, Levon"]
[Result "1/2-1/2"]
[ECO "A36"]
[WhiteElo "2690"]
[BlackElo "2736"]
[Annotator "TA"]
[PlyCount "60"]
[EventDate "2023.02.16"]
[EventCountry "GER"]
[SourceTitle "playchess.com"]
[Source "ChessBase"]
[SourceQuality "1"]
[TimeControl "40/7200:20/3600:900+30"]

{[%evp 9,60,0,0,0,0,0,0,0,0,0,0,0,0,0,-12,-13,0,0,-5,0,-11,0,27,26,18,31,22,38,47,37,43,40,52,0,0,0,0,0,0,0,0,0,0,0,0,0,0,0,0,0,0,-14,0]} 1. c4 {[%emt 0:00:00]} Nf6 {[%emt 0:00:19]} 2. g3 {[%emt 0:00:07]} c5 {[%emt 0:00:57]} 3. Bg2 {[%emt 0:00:06]} Nc6 {[%emt 0:00:07]} 4. Nc3 {[%emt 0:00:04]} e6 {[%emt 0:00:07]} 5. Bxc6 {[%emt 0:00:30]} dxc6 {[%emt 0:00:19] [#]} 6. f4 $146 {[%emt 0:00:08][%cal Bf2f4,Bf4e5][%mdl 32] A36: Symmetrical English vs ...g6: 4 Bg2 Bg7.} ({Predecessor:} 6. Nf3 Bd6 7. d3 O-O 8. e4 e5 9. Be3 Ng4 10. Bd2 Nf6 11. Qb3 Bg4 12. Nh4 b6 {0-1 Bornarel,G-Gassmann,L Geneve op 1995 (8)}) 6... Bd6 {[%emt 0:00:03]} 7. Nf3 {[%emt 0:00:05] Repels e5} Bc7 {[%emt 0:00:04]} 8. d3 {[%emt 0:00:24]} e5 {[%emt 0:00:05]} 9. fxe5 {[%emt 0:00:04]} Ng4 {[%emt 0:00:05]} 10. Bf4 {[%emt 0:00:06] [#] Strongly threatening h3.} Qe7 $1 {[%emt 0:00:10]} 11. Qd2 {[%emt 0:00:15]} O-O {[%emt 0:01:39]} 12. Rf1 {[%emt 0:00:46]} b6 {[%emt 0:04:35]} 13. e6 {[%emt 0:24:24]} Bxe6 {[%emt 0:02:14]} 14. h3 {[%emt 0:00:56]} Nf6 {[%emt 0:00:54]} 15. Ng5 {[%emt 0:03:22]} h6 {[%emt 0:05:18]} 16. Nxe6 {[%emt 0:04:52]} fxe6 {[%emt 0:00:06]} 17. Bxc7 {[%emt 0:00:10]} Qxc7 {[%emt 0:00:04]} 18. Qe3 {[%emt 0:00:05]} Nh5 {[%emt 0:00:08]} 19. Rg1 {[%emt 0:04:33]} Rae8 {[%emt 0:08:54]} 20. O-O-O {[%emt 0:02:39]} Qd6 {[%emt 0:07:32]} 21. Qe4 {[%emt 0:15:49]} ({White should try} 21. g4 $14 Nf4 22. Kb1) 21... Nf6 $11 {[%emt 0:12:27][%cal Bh5f6,Bf6h7,Bh7f8][%mdl 32] The position is equal.} 22. Qg6 {[%emt 0:07:33]} e5 {[%emt 0:04:28][%cal Be6e5,Be5e4][%mdl 32]} 23. g4 {[%emt 0:07:44][%cal Bg3g4,Bg4g5][%mdl 32]} Re6 {[%emt 0:09:00][%cal Of6d5]} 24. Rgf1 {[%emt 0:08:00]} e4 {[%emt 0:01:02]} 25. g5 {[%emt 0:02:52]} (25. Nxe4 $2 {loses.} Nxe4 26. Rxf8+ Kxf8 $19) 25... Nh7 {[%emt 0:02:53]} 26. Rxf8+ {[%emt 0:00:26]} Nxf8 {[%emt 0:00:05]} 27. Qf5 {[%emt 0:00:17]} exd3 {[%emt 0:00:05]} 28. Rxd3 {[%emt 0:03:05]} Qe7 {[%emt 0:03:50]} 29. gxh6 {[%emt 0:02:03]} Rxh6 {[%emt 0:00:05]} 30. Rf3 {[%emt 0:03:44]} Rf6 {[%emt 0:03:00] Weighted Error Value: White=0.03 (flawless) /Black=0.03 (flawless)} 1/2-1/2

[Event "WR Chess Masters 2023"]
[Site "Duesseldorf"]
[Date "2023.02.17"]
[Round "2.4"]
[White "Duda, Jan-Krzysztof"]
[Black "Nepomniachtchi, Ian"]
[Result "1/2-1/2"]
[ECO "C42"]
[WhiteElo "2729"]
[BlackElo "2793"]
[Annotator "TA"]
[PlyCount "78"]
[EventDate "2023.02.16"]
[EventCountry "GER"]
[SourceTitle "playchess.com"]
[Source "ChessBase"]
[SourceQuality "1"]
[TimeControl "40/7200:20/3600:900+30"]

{[%evp 18,78,21,23,24,18,21,23,18,10,8,12,43,44,44,46,46,46,46,46,46,46,46,46,46,46,46,46,46,46,51,48,60,43,53,43,48,10,10,0,0,0,0,0,4,0,0,0,0,0,0,0,0,0,0,0,0,0,0,0,0,0,0]} 1. e4 {[%emt 0:00:05]} e5 {[%emt 0:00:06]} 2. Nf3 {[%emt 0:00:06]} Nf6 {[%emt 0:00:06]} 3. Nxe5 {[%emt 0:00:13]} d6 {[%emt 0:00:05]} 4. Nf3 {[%emt 0:00:07]} Nxe4 {[%emt 0:00:07]} 5. d4 {[%emt 0:00:07]} d5 {[%emt 0:00:04]} 6. Bd3 {[%emt 0:00:06]} Bd6 {[%emt 0:00:33]} 7. O-O {[%emt 0:00:15]} O-O {[%emt 0:00:05]} 8. c4 {[%emt 0:00:12]} c6 {[%emt 0:00:06]} 9. Re1 {[%emt 0:00:12]} Bf5 {[%emt 0:00:29]} 10. Qb3 {[%emt 0:00:29]} Qd7 {[%emt 0:00:20] C42: Petroff Defence: 3 Nxe5 and unusual White 3rd moves.} 11. Nc3 {[%emt 0:00:42] 11.c5 might become the main line.} Nxc3 {[%emt 0:00:48]} 12. Bxf5 {[%emt 0:00:08]} Qxf5 {[%emt 0:00:23] White has an edge.} 13. bxc3 {[%emt 0:00:18] [#] c5 would be deadly.} (13. Qxb7 {seems wilder.} Qd7 14. Qxd7 Nxd7 15. c5) 13... b6 {[%emt 0:02:31]} 14. Nh4 {[%emt 0:00:23] [#]} Qd7 $146 {[%emt 0:19:16]} ({Predecessor:} 14... Qh5 15. g3 Nd7 16. cxd5 cxd5 17. Ng2 Rfe8 18. Bf4 Bf8 19. Ne3 Nf6 20. Kg2 Rac8 {½-½ Adams,M (2701)-Papp,G (2603) Gibraltar Masters 17th 2019 (5)}) 15. cxd5 {[%emt 0:00:33]} cxd5 {[%emt 0:01:48]} 16. g3 {[%emt 0:00:08]} Be7 {[%emt 0:04:25] [#]} 17. Rxe7 {[%emt 0:00:18][%mdl 64] Remove Defender} Qxe7 {[%emt 0:00:06]} 18. Ba3 {[%emt 0:00:05][%mdl 64] Deflection} (18. Qxd5 Qe1+ 19. Kg2 Qxc3 $17) 18... Qd7 {[%emt 0:07:11]} 19. Bxf8 {[%emt 0:00:35]} Kxf8 {[%emt 0:00:05]} 20. Re1 {[%emt 0:00:24]} Nc6 {[%emt 0:05:36]} 21. Qa3+ {[%emt 0:00:09]} Kg8 {[%emt 0:00:43]} 22. Ng2 {[%emt 0:00:06]} h6 {[%emt 0:12:38]} 23. h4 {[%emt 0:08:51]} Re8 {[%emt 0:18:16]} 24. Rxe8+ {[%emt 0:06:21]} Qxe8 $14 {[%emt 0:00:06][%mdl 4096] Endgame KQN-KQN} 25. Qd6 {[%emt 0:01:09]} Qe6 {[%emt 0:00:14]} 26. Qc7 {[%emt 0:00:35]} b5 $1 {[%emt 0:00:18][%cal Bb6b5,Bb5b4][%mdl 32]} 27. h5 {[%emt 0:06:50]} (27. Kf1 $5 {[%cal Rg2f4]}) 27... b4 $1 {[%emt 0:04:01] The position is equal.} 28. Nf4 {[%emt 0:06:23]} (28. cxb4 {is interesting.} Nxd4 29. Nh4 a6 30. a4) 28... Qe8 {[%emt 0:01:05]} (28... Qe1+ 29. Kg2 Qe8 30. cxb4 $16 (30. Nxd5 $2 Qe4+ 31. Kg1 Qxd5 $19)) 29. cxb4 {[%emt 0:00:13]} (29. Nxd5 $2 {is the wrong capture.} Qe1+ 30. Kg2 Qe4+ 31. Kg1 Qe1+ 32. Kg2 Qe4+ 33. Kg1 Qxd5 $19) 29... Nxd4 {[%emt 0:00:48]} 30. Kf1 {[%emt 0:21:05]} (30. Nxd5 $2 {too greedy.} Qe1+ 31. Kg2 (31. Kh2 {is a self mate.} Qxf2+ 32. Kh3 Qf1+ 33. Kh4 Qh1+ 34. Kg4 f5+ 35. Kf4 Qe4#) 31... Qe4+ 32. Kg1 Nf3+ 33. Kg2 Nd4+ 34. Kg1 Nf3+ 35. Kg2 Qxd5 $19) 30... Ne6 {[%emt 0:05:30]} 31. Qxa7 {[%emt 0:13:48] Hoping for Nxe6.} Nxf4 {[%emt 0:00:23]} 32. gxf4 $11 {[%emt 0:00:54] KQ-KQ} Qb5+ {[%emt 0:00:56]} 33. Kg2 {[%emt 0:00:07]} Qxb4 {[%emt 0:00:15]} 34. Qa8+ {[%emt 0:00:17]} Kh7 {[%emt 0:00:05]} 35. Qxd5 {[%emt 0:00:04]} Qxf4 {[%emt 0:00:04]} 36. Qd3+ {[%emt 0:00:22]} Kg8 {[%emt 0:00:11]} 37. Qd8+ {[%emt 0:00:04]} Kh7 {[%emt 0:00:04]} 38. Qd3+ {[%emt 0:00:05]} Kg8 {[%emt 0:00:02]} 39. Qd8+ {[%emt 0:00:05]} Kh7 {[%emt 0:00:04] Weighted Error Value: White=0.02 (flawless) /Black=0.03 (flawless)} 1/2-1/2